[Event "13th Poti Nana Aleksandria Cup"]
[Site "Poti"]
[Date "2018.07.18"]
[Round "7"]
[White "Arabidze, Meri"]
[Black "Chkhaidze, Nikoloz"]
[Result "1-0"]
[ECO "A45"]
[WhiteElo "2397"]
[BlackElo "2337"]
[Annotator "NA"]
[PlyCount "139"]
[EventDate "2018.07.13"]
[EventType "swiss"]
[EventCountry "GEO"]
[SourceTitle "playchess.com"]
[Source "ChessBase"]
[SourceQuality "1"]
[TimeControl "40/5400+30:1800+30"]

1. d4 {[%emt 0:00:00]} Nf6 {[%emt 0:00:00]} 2. Bg5 {[%emt 0:00:09]} d5 {[%emt 0:00:00]} 3. e3 {[%emt 0:00:45]} c5 {[%emt 0:00:45]} 4. Bxf6 {[%emt 0:01:21]} gxf6 {[%emt 0:00:04]} 5. dxc5 {[%emt 0:00:45]} Nc6 {[%emt 0:04:46] D00: 1 d4 d5: Unusual lines} 6. Nc3 {[%emt 0:01:40]} (6. Nf3 e5 7. Nc3 Be6 8. Na4 Qa5+ 9. c3 b5 10. cxb6 axb6 11. b4 Nxb4 12. Nd2 Nc6 13. Qb3 Qxa4 14. Qxa4 Rxa4 {0-1 (32) Moiseenko,A (2667)-Karjakin,S (2760) Riadh 2017}) 6... e6 {[%emt 0:01:35]} 7. Nf3 {[%emt 0:02:48]} Bxc5 {[%emt 0:01:02]} 8. Be2 {[%emt 0:00:42]} Bd7 {[%emt 0:08:24]} 9. O-O {[%emt 0:02:01]} f5 {[%emt 0:02:51]} 10. a3 $146 {[%emt 0:04:09]} ({Predecessor:} 10. Nb5 a6 11. Nbd4 Qf6 12. c3 O-O 13. Ne1 {½-½ (21) Aaberg,A (2365)-Bergstrom,P (2272) Sweden 2017}) 10... Qf6 {[%emt 0:00:35]} 11. Nb5 {[%emt 0:02:35]} O-O {[%emt 0:10:51]} 12. b4 {[%emt 0:05:12]} Bb6 {[%emt 0:09:07]} 13. c4 {[%emt 0:02:59]} Ne7 {[%emt 0:00:42]} 14. Nd6 {[%emt 0:04:23]} Rab8 {[%emt 0:02:38]} 15. a4 {[%emt 0:34:16]} ({Better is} 15. c5 $11 Bc7 16. Qc2) 15... a6 {[%emt 0:06:50]} 16. c5 {[%emt 0:02:21]} Bc7 {[%emt 0:01:36]} 17. b5 {[%emt 0:00:11]} axb5 {[%emt 0:00:38]} 18. Nxb5 {[%emt 0:00:48]} Rfc8 {[%emt 0:04:50]} 19. Qd4 {[%emt 0:01:09]} e5 {[%emt 0:02:35]} 20. Qb2 {[%emt 0:02:20]} Ng6 {[%emt 0:01:25]} 21. Rfd1 {[%emt 0:02:09]} Bc6 {[%emt 0:01:32]} 22. Nxc7 {[%emt 0:00:35]} Rxc7 {[%emt 0:00:05]} 23. Qb6 {[%emt 0:00:18]} Qe7 {[%emt 0:05:06]} 24. a5 {[%emt 0:01:42]} Rd8 {[%emt 0:03:40]} 25. a6 {[%emt 0:04:59]} bxa6 {[%emt 0:00:26]} 26. Rxa6 {[%emt 0:00:03]} d4 {[%emt 0:06:57]} 27. exd4 {[%emt 0:00:45]} Nf4 {[%emt 0:01:00]} 28. Re1 $1 {[%emt 0:05:09]} Nxe2+ {[%emt 0:14:32]} 29. Rxe2 {[%emt 0:00:04]} Bxf3 {[%emt 0:00:17]} 30. gxf3 {[%emt 0:00:11]} Rxd4 {[%emt 0:00:47]} 31. Re1 {[%emt 0:03:26]} Rd8 {[%emt 0:04:57]} 32. Kh1 {[%emt 0:02:07]} Kh8 {[%emt 0:01:54]} 33. Rg1 {[%emt 0:05:25]} Rg8 {[%emt 0:00:08]} 34. Rxg8+ {[%emt 0:01:35]} Kxg8 {[%emt 0:00:04]} 35. Ra1 {[%emt 0:03:23]} Rc8 {[%emt 0:00:28]} 36. Qh6 {[%emt 0:04:22]} Kh8 {[%emt 0:00:25]} 37. c6 {[%emt 0:00:45]} f6 {[%emt 0:01:31]} 38. Rc1 {[%emt 0:00:15]} Qg7 {[%emt 0:00:31]} 39. Qxg7+ {[%emt 0:01:02]} Kxg7 {[%emt 0:00:03]} 40. c7 {[%emt 0:00:00]} Kf7 {[%emt 0:00:00]} 41. Rc6 {[%emt 0:03:39]} Ke7 {[%emt 0:09:49]} 42. Kg2 {[%emt 0:00:59]} Kd7 {[%emt 0:07:39]} 43. Rxf6 {[%emt 0:00:11]} Kxc7 {[%emt 0:00:30]} 44. Rxf5 {[%emt 0:01:11]} Kd6 {[%emt 0:01:26]} 45. Rf7 {[%emt 0:00:31]} Rh8 {[%emt 0:01:45]} 46. Rf6+ {[%emt 0:03:51]} Ke7 {[%emt 0:00:24]} 47. Rh6 {[%emt 0:00:48]} Rg8+ {[%emt 0:00:20]} 48. Kf1 {[%emt 0:01:04]} Rg7 {[%emt 0:00:08]} 49. Ra6 {[%emt 0:02:48]} Rg8 {[%emt 0:04:04]} 50. Ra7+ {[%emt 0:00:10]} Kf6 {[%emt 0:00:04]} 51. Rxh7 {[%emt 0:00:10]} Ra8 {[%emt 0:00:10]} 52. Rh4 {[%emt 0:00:50]} Kf5 {[%emt 0:00:17]} 53. Rg4 {[%emt 0:00:50]} Rh8 {[%emt 0:08:08]} 54. Kg2 {[%emt 0:00:11]} Rh7 {[%emt 0:00:04]} 55. h4 {[%emt 0:00:51]} Rh8 {[%emt 0:00:13]} 56. Kg3 {[%emt 0:00:10]} Rh7 {[%emt 0:00:44]} 57. Rg5+ {[%emt 0:01:14]} Kf6 {[%emt 0:00:09]} 58. Kg4 {[%emt 0:02:52]} Ra7 {[%emt 0:00:25]} 59. Rf5+ {[%emt 0:03:50]} Ke6 {[%emt 0:00:04]} 60. f4 {[%emt 0:01:15]} exf4 $2 {[%emt 0:00:21]} (60... e4 61. Re5+ Kf6 62. Rxe4 Rg7+ 63. Kf3 Rh7) 61. Rxf4 $2 {[%emt 0:00:16]} (61. h5 Ra1 62. Rxf4) 61... Rg7+ {[%emt 0:00:47]} 62. Kh5 {[%emt 0:05:06]} Rg1 {[%emt 0:00:19]} 63. Kh6 {[%emt 0:00:34]} Ke7 {[%emt 0:00:12]} 64. h5 {[%emt 0:00:30]} Rg2 {[%emt 0:00:27]} 65. Kh7 {[%emt 0:00:09]} Rg1 {[%emt 0:00:26]} 66. h6 {[%emt 0:00:18]} Rg2 {[%emt 0:00:35]} 67. Kh8 {[%emt 0:00:30]} Rg1 {[%emt 0:06:10]} 68. h7 {[%emt 0:00:13]} Rg5 {[%emt 0:00:44]} 69. f3 {[%emt 0:00:11]} Rg3 {[%emt 0:01:07]} 70. Rg4 {[%emt 0:00:41]} 1-0

[Event "13th Poti Nana Aleksandria Cup"]
[Site "Poti"]
[Date "2018.07.18"]
[Round "7"]
[White "Aliyev, Ravan"]
[Black "Mgeladze, Tamaz"]
[Result "1/2-1/2"]
[ECO "E61"]
[WhiteElo "2324"]
[BlackElo "2374"]
[Annotator "ChessBase"]
[PlyCount "101"]
[EventDate "2018.07.13"]
[EventType "swiss"]
[EventCountry "GEO"]
[SourceTitle "playchess.com"]
[Source "ChessBase"]
[SourceQuality "1"]
[TimeControl "40/5400+30:1800+30"]

1. d4 {[%emt 0:00:00]} Nf6 {[%emt 0:00:00]} 2. c4 {[%emt 0:00:07]} g6 {[%emt 0:00:00]} 3. Nc3 {[%emt 0:00:10]} Bg7 {[%emt 0:00:00]} 4. g3 {[%emt 0:00:06]} O-O {[%emt 0:00:00]} 5. Bg2 {[%emt 0:00:04]} c5 {[%emt 0:00:02]} 6. Nf3 {[%emt 0:00:12]} Nc6 {[%emt 0:00:55]} 7. O-O {[%emt 0:00:14]} cxd4 {[%emt 0:00:02]} 8. Nxd4 {[%emt 0:00:08]} Nxd4 {[%emt 0:00:05]} 9. Qxd4 {[%emt 0:00:11]} d6 {[%emt 0:00:02]} 10. Qd2 {[%emt 0:01:29]} Be6 {[%emt 0:00:20]} 11. Bxb7 {[%emt 0:09:26]} Rb8 {[%emt 0:00:13]} 12. Bg2 {[%emt 0:00:17]} Bxc4 {[%emt 0:00:20]} 13. b3 {[%emt 0:00:13]} Be6 {[%emt 0:01:04]} 14. Bb2 {[%emt 0:00:07]} Qa5 {[%emt 0:00:34]} 15. Ne4 {[%emt 0:05:31]} Qxd2 {[%emt 0:00:37]} 16. Nxd2 {[%emt 0:00:03]} Rfc8 {[%emt 0:00:17]} 17. Rfc1 {[%emt 0:12:24]} Nd5 {[%emt 0:05:40]} 18. Bxg7 {[%emt 0:03:18]} Kxg7 {[%emt 0:00:15]} 19. Bxd5 {[%emt 0:16:24]} Bxd5 {[%emt 0:00:06]} 20. e4 {[%emt 0:00:10]} Ba8 {[%emt 0:05:52]} 21. f3 {[%emt 0:00:40]} f5 {[%emt 0:01:01]} 22. Kf2 {[%emt 0:00:40]} fxe4 {[%emt 0:03:50]} 23. fxe4 {[%emt 0:00:29]} Kf6 {[%emt 0:00:42]} 24. Ke3 {[%emt 0:00:19]} Ke6 {[%emt 0:00:29]} 25. Nc4 {[%emt 0:10:43]} Rc5 {[%emt 0:01:22]} 26. Kd4 {[%emt 0:06:36]} Rbc8 {[%emt 0:01:29]} 27. Rc2 {[%emt 0:03:32]} Kd7 {[%emt 0:15:41]} 28. Rac1 {[%emt 0:01:36]} Rf8 {[%emt 0:09:08]} 29. Ne3 {[%emt 0:04:45]} Re5 {[%emt 0:05:59]} 30. Rc7+ {[%emt 0:06:42]} Ke6 {[%emt 0:00:35]} 31. Rxa7 {[%emt 0:00:10]} Rxe4+ {[%emt 0:02:49]} 32. Kd3 {[%emt 0:00:01]} Rf3 {[%emt 0:03:05]} 33. Re1 {[%emt 0:03:28]} Bc6 {[%emt 0:07:35]} 34. Ra6 {[%emt 0:01:49]} Bd5 {[%emt 0:01:00]} 35. Ra5 {[%emt 0:00:23]} Re5 {[%emt 0:01:31]} 36. Rxd5 {[%emt 0:04:48]} Rxd5+ {[%emt 0:02:44]} 37. Ke2 {[%emt 0:00:18]} Rxe3+ {[%emt 0:02:17]} 38. Kxe3 {[%emt 0:00:15]} Re5+ {[%emt 0:05:32]} 39. Kd2 {[%emt 0:00:41]} Rxe1 {[%emt 0:00:02]} 40. Kxe1 {[%emt 0:00:00]} Kd5 {[%emt 0:00:00]} 41. a4 {[%emt 0:01:51]} Kc5 {[%emt 0:01:51]} 42. a5 {[%emt 0:00:22]} d5 {[%emt 0:00:39]} 43. b4+ {[%emt 0:00:07]} Kb5 {[%emt 0:00:03]} 44. Kd2 {[%emt 0:00:27]} e5 {[%emt 0:00:07]} 45. Ke3 {[%emt 0:00:18]} h6 {[%emt 0:00:42]} 46. Kd3 {[%emt 0:01:42]} h5 {[%emt 0:00:54]} 47. h4 {[%emt 0:00:41]} d4 {[%emt 0:02:54]} 48. Ke4 {[%emt 0:00:28]} Ka6 {[%emt 0:00:39]} 49. Kd3 {[%emt 0:00:11]} Kb5 {[%emt 0:00:05]} 50. Ke4 {[%emt 0:00:04]} Ka6 {[%emt 0:00:06]} 51. Kd3 {[%emt 0:00:05]} 1/2-1/2

[Event "13th Poti Nana Aleksandria Cup"]
[Site "Poti"]
[Date "2018.07.18"]
[Round "7"]
[White "Ghvamberia, Nika"]
[Black "Eynullayev, Atilla"]
[Result "1-0"]
[ECO "A34"]
[WhiteElo "2236"]
[BlackElo "2120"]
[Annotator "NA"]
[PlyCount "123"]
[EventDate "2018.07.13"]
[EventType "swiss"]
[EventCountry "GEO"]
[SourceTitle "playchess.com"]
[Source "ChessBase"]
[SourceQuality "1"]
[TimeControl "40/5400+30:1800+30"]

1. c4 {[%emt 0:00:00]} c5 {[%emt 0:00:00]} 2. Nc3 {[%emt 0:00:00]} Nf6 {[%emt 0:00:00]} 3. g3 {[%emt 0:00:00]} d5 {[%emt 0:00:00]} 4. cxd5 {[%emt 0:00:00]} Nxd5 {[%emt 0:00:00]} 5. Bg2 {[%emt 0:00:00]} Nc7 {[%emt 0:00:00]} 6. d3 {[%emt 0:00:04]} e5 {[%emt 0:00:40]} 7. Nf3 {[%emt 0:00:35]} Nc6 {[%emt 0:00:05]} 8. O-O {[%emt 0:00:04]} Be7 {[%emt 0:00:29]} 9. Nd2 {[%emt 0:00:07]} Bd7 {[%emt 0:00:56]} 10. Nc4 {[%emt 0:00:08]} f6 {[%emt 0:04:08]} 11. f4 {[%emt 0:01:01]} b5 {[%emt 0:05:29]} 12. Ne3 {[%emt 0:00:49]} exf4 {[%emt 0:29:09] LiveBook: 123 Games} 13. Nf5 {[%emt 0:05:55]} O-O {[%emt 0:04:56]} (13... b4 $1 $11 {hält das Gleichgewicht.}) 14. Nxe7+ {[%emt 0:06:58]} Qxe7 {[%emt 0:00:15]} 15. Bxf4 {[%emt 0:00:06]} Ne6 {[%emt 0:10:24]} 16. Nd5 {[%emt 0:06:33]} Qd8 {[%emt 0:12:03]} 17. Bd6 {[%emt 0:11:07]} Re8 {[%emt 0:02:26]} 18. Rc1 {[%emt 0:01:37]} Rc8 {[%emt 0:02:35]} 19. e3 {[%emt 0:31:30]} Ne5 {[%emt 0:02:35]} 20. Bxe5 {[%emt 0:03:50]} fxe5 {[%emt 0:00:12]} 21. Qh5 {[%emt 0:00:19]} Bc6 {[%emt 0:09:12]} 22. Be4 {[%emt 0:03:44]} Ng5 {[%emt 0:01:31]} 23. Rxc5 {[%emt 0:00:55]} Nxe4 {[%emt 0:02:36]} 24. dxe4 {[%emt 0:00:37]} Bd7 {[%emt 0:06:29]} 25. Rxc8 {[%emt 0:12:16]} Bxc8 {[%emt 0:00:55]} 26. Qf7+ {[%emt 0:07:37]} Kh8 {[%emt 0:00:06]} 27. Qc7 {[%emt 0:01:57]} (27. Qxa7 $16 Bh3 28. Rc1) 27... Bh3 {[%emt 0:02:32]} 28. Qxd8 {[%emt 0:02:46]} Rxd8 {[%emt 0:00:04]} 29. Rc1 {[%emt 0:02:32]} h6 {[%emt 0:02:23]} 30. Kf2 {[%emt 0:00:34]} Rf8+ {[%emt 0:00:14]} 31. Ke2 {[%emt 0:00:01]} Bg4+ {[%emt 0:00:57]} 32. Kd3 {[%emt 0:00:06]} a6 {[%emt 0:00:51]} 33. Nb4 {[%emt 0:00:48]} (33. b4 $16) 33... Rd8+ {[%emt 0:00:07]} 34. Nd5 {[%emt 0:00:38]} Rf8 {[%emt 0:00:05]} 35. Nb4 {[%emt 0:00:40]} Rd8+ {[%emt 0:00:04]} 36. Kc3 {[%emt 0:00:45]} Bf3 {[%emt 0:01:39]} (36... Rc8+ $16 {was worth a try.} 37. Kd2 Rd8+ 38. Nd5 Rf8) 37. Nxa6 {[%emt 0:00:26]} Rc8+ {[%emt 0:00:57]} 38. Kd2 {[%emt 0:00:06]} Rd8+ {[%emt 0:00:03]} 39. Ke1 {[%emt 0:00:10]} Bxe4 {[%emt 0:00:05]} 40. Nc5 {[%emt 0:00:00]} Bf3 {[%emt 0:00:00]} 41. a3 {[%emt 0:05:40]} e4 {[%emt 0:04:24]} 42. b3 {[%emt 0:01:52]} g5 {[%emt 0:01:28]} 43. a4 {[%emt 0:00:49]} bxa4 {[%emt 0:00:30]} 44. bxa4 {[%emt 0:00:59]} Rb8 {[%emt 0:00:40] [#]} 45. Kd2 $1 {[%emt 0:02:09]} Rb2+ {[%emt 0:01:50]} 46. Rc2 {[%emt 0:00:06]} Rb1 {[%emt 0:00:21]} 47. Ra2 {[%emt 0:00:58]} Rd1+ {[%emt 0:00:31]} 48. Kc3 {[%emt 0:00:12]} Re1 {[%emt 0:00:05]} 49. Kd4 {[%emt 0:00:18]} Rd1+ {[%emt 0:00:10]} 50. Ke5 {[%emt 0:00:19]} Re1 {[%emt 0:00:36]} 51. Ra3 {[%emt 0:01:19]} Rc1 {[%emt 0:03:05]} 52. Ne6 {[%emt 0:03:17]} Rd1 {[%emt 0:01:00]} 53. Nd4 {[%emt 0:05:50]} Bg4 {[%emt 0:08:29]} 54. a5 {[%emt 0:01:31]} Bc8 {[%emt 0:00:48]} 55. Rc3 {[%emt 0:02:05]} Ba6 {[%emt 0:01:03]} 56. Rc6 {[%emt 0:00:05]} Bd3 {[%emt 0:00:08]} 57. Rxh6+ {[%emt 0:00:05]} Kg7 {[%emt 0:00:07]} 58. Nf5+ {[%emt 0:00:14]} Kf7 {[%emt 0:00:14]} 59. Rh7+ {[%emt 0:00:37]} Kg8 {[%emt 0:01:10]} 60. Rg7+ {[%emt 0:00:15]} Kh8 {[%emt 0:00:06]} 61. Rxg5 $18 {[%emt 0:00:08]} Ra1 {[%emt 0:00:11]} 62. Kf6 {[%emt 0:00:17]} 1-0

[Event "13th Poti Nana Aleksandria Cup"]
[Site "Poti"]
[Date "2018.07.18"]
[Round "7"]
[White "Martynyuk, Elizaveta"]
[Black "Janiashvili, Mariami"]
[Result "0-1"]
[ECO "B01"]
[WhiteElo "2182"]
[BlackElo "1988"]
[Annotator "NA"]
[PlyCount "84"]
[EventDate "2018.07.13"]
[EventType "swiss"]
[EventCountry "GEO"]
[SourceTitle "playchess.com"]
[Source "ChessBase"]
[SourceQuality "1"]
[TimeControl "40/5400+30:1800+30"]

1. e4 {[%emt 0:03:21]} d5 {[%emt 0:00:00]} 2. exd5 {[%emt 0:00:05]} Qxd5 {[%emt 0:00:00]} 3. Nc3 {[%emt 0:00:06]} Qa5 {[%emt 0:00:00]} 4. d4 {[%emt 0:00:10]} Nf6 {[%emt 0:00:00]} 5. Nf3 {[%emt 0:00:15]} Bg4 {[%emt 0:00:00]} 6. h3 {[%emt 0:00:24]} Bh5 {[%emt 0:00:00]} 7. g4 {[%emt 0:00:52]} Bg6 {[%emt 0:00:38]} 8. Bg2 {[%emt 0:00:48] LiveBook: 5 Partien} c6 {[%emt 0:03:42] B01: Scandinavian Defence} 9. Bd2 {[%emt 0:02:12]} (9. O-O e6 10. Ne5 Nbd7 11. Bf4 Nxe5 12. Bxe5 Nd7 13. Bg3 Bb4 14. Ne4 O-O 15. c3 Be7 16. Qe2 f5 17. gxf5 exf5 18. Nd6 Bxd6 {0-1 (37) Barros,R (2194)-Martinez Zuluaica,J (2276) Quibdo 2015}) 9... Nbd7 {[%emt 0:02:17]} 10. Nh4 {[%emt 0:00:50]} Qb6 $146 {[%emt 0:08:35]} ({Predecessor:} 10... e6 11. Nxg6 hxg6 12. Qe2 Qb6 13. d5 cxd5 14. g5 Ne4 15. Nxe4 dxe4 16. O-O-O {½-½ (30) Ebert,W-Funk,V Darmstadt 1993}) 11. f4 {[%emt 0:01:42]} e6 {[%emt 0:04:14]} 12. Qe2 {[%emt 0:02:00]} O-O-O {[%emt 0:03:30] [#]} ({Falsch wäre} 12... Qxb2 $2 13. Rb1 $18) 13. O-O-O $1 {[%emt 0:00:30]} Bd6 {[%emt 0:09:18]} 14. Be3 {[%emt 0:01:15]} Qa5 {[%emt 0:01:49]} 15. Rhf1 {[%emt 0:02:54]} Bb4 {[%emt 0:02:25]} 16. Bd2 {[%emt 0:00:19]} Nb6 {[%emt 0:11:07]} 17. a3 {[%emt 0:01:32]} Bxa3 {[%emt 0:12:22]} 18. Nd5 {[%emt 0:00:26]} Qa4 {[%emt 0:03:06]} 19. Nxb6+ {[%emt 0:00:07]} axb6 {[%emt 0:00:03]} 20. Nxg6 {[%emt 0:00:15]} Bd6 {[%emt 0:05:45]} 21. Bc3 {[%emt 0:00:29]} hxg6 {[%emt 0:00:05]} 22. Kd2 {[%emt 0:01:29]} Nd5 {[%emt 0:02:42]} 23. Ra1 $2 {[%emt 0:04:51]} (23. Bxd5 $17 cxd5 24. Rf3) 23... Bxf4+ {[%emt 0:09:02]} 24. Rxf4 {[%emt 0:00:04]} Qxa1 {[%emt 0:00:05]} 25. Rxf7 {[%emt 0:00:11]} e5 {[%emt 0:00:47]} 26. Rxg7 {[%emt 0:02:03]} Nxc3 {[%emt 0:05:04]} 27. Qxe5 {[%emt 0:02:33]} Nb5 {[%emt 0:00:44]} 28. Qe6+ {[%emt 0:04:53]} Kb8 {[%emt 0:00:04]} 29. Qe5+ {[%emt 0:00:18]} Ka8 {[%emt 0:01:19]} 30. Qe7 {[%emt 0:00:48]} Rxd4+ $19 {[%emt 0:01:16]} 31. Ke2 {[%emt 0:00:11]} Qd1+ {[%emt 0:02:10]} 32. Kf2 {[%emt 0:00:03]} Qxc2+ {[%emt 0:00:39]} 33. Kg1 {[%emt 0:00:15]} Qc1+ {[%emt 0:00:34]} 34. Kf2 {[%emt 0:01:15]} Nd6 {[%emt 0:02:00]} 35. Qe5 {[%emt 0:02:50]} Rf8+ {[%emt 0:01:30]} 36. Kg3 {[%emt 0:00:10]} Rd3+ {[%emt 0:02:23]} 37. Kh2 {[%emt 0:00:08]} Qf4+ {[%emt 0:00:29]} 38. Qxf4 {[%emt 0:00:08]} Rxf4 {[%emt 0:00:01]} 39. Rxg6 {[%emt 0:00:08]} Rf2 {[%emt 0:00:04]} 40. g5 {[%emt 0:00:00]} Rdd2 {[%emt 0:00:00]} 41. Kh1 {[%emt 0:00:36]} Nf5 {[%emt 0:00:43]} 42. Rg8+ {[%emt 0:34:18]} Ka7 {[%emt 0:00:18]} 0-1

[Event "13th Poti Nana Aleksandria Cup"]
[Site "Poti"]
[Date "2018.07.18"]
[Round "7"]
[White "Yeritsyan, Hayk"]
[Black "Poormosavi, Seyed Kian"]
[Result "1/2-1/2"]
[ECO "A05"]
[WhiteElo "2178"]
[BlackElo "2221"]
[Annotator "NA"]
[PlyCount "98"]
[EventDate "2018.07.13"]
[EventType "swiss"]
[EventCountry "GEO"]
[SourceTitle "playchess.com"]
[Source "ChessBase"]
[SourceQuality "1"]
[TimeControl "40/5400+30:1800+30"]

1. Nf3 {[%emt 0:00:00]} Nf6 {[%emt 0:07:21]} 2. b3 {[%emt 0:00:00]} b6 {[%emt 0:00:56]} 3. Bb2 {[%emt 0:00:00]} Bb7 {[%emt 0:00:05]} 4. c4 {[%emt 0:01:02] A05: Réti Opening: 1 Nf3 Nf6} (4. g3 e6 5. Bg2 Be7 6. O-O O-O 7. c4 c5 8. Re1 d5 9. cxd5 Nxd5 10. Nc3 Nxc3 11. Bxc3 Nc6 12. d4 Bf6 13. Rc1 Nxd4 14. Nxd4 Bxg2 15. Nxe6 fxe6 16. Kxg2 Qxd1 17. Rexd1 {½-½ (29) Karjakin,S (2782)-Vachier Lagrave,M (2789) Stavanger 2018}) 4... e6 {[%emt 0:00:26]} 5. e3 {[%emt 0:00:19]} Be7 {[%emt 0:00:28]} 6. d4 {[%emt 0:04:11]} O-O {[%emt 0:02:31]} 7. Bd3 {[%emt 0:00:13]} c5 {[%emt 0:03:01]} 8. dxc5 {[%emt 0:04:59]} bxc5 {[%emt 0:00:31]} 9. Nc3 $146 {[%emt 0:02:45]} ({Predecessor:} 9. O-O d6 10. Nc3 e5 11. Nd2 Nbd7 {½-½ (109) Grigoriev,A (2199)-Demircin,K (1983) Kocaeli 2014}) 9... d5 {[%emt 0:04:09]} 10. O-O {[%emt 0:01:56]} Nbd7 {[%emt 0:03:01]} 11. Qc2 {[%emt 0:03:22]} d4 {[%emt 0:08:23]} 12. Ne4 {[%emt 0:03:10]} dxe3 {[%emt 0:09:02]} 13. fxe3 {[%emt 0:08:07]} Nxe4 {[%emt 0:06:29]} 14. Bxe4 {[%emt 0:00:05]} Bxe4 {[%emt 0:00:22]} 15. Qxe4 {[%emt 0:00:02]} Bf6 {[%emt 0:00:17]} 16. Bxf6 {[%emt 0:06:45]} Nxf6 {[%emt 0:00:41]} 17. Qe5 {[%emt 0:00:15]} Qe7 {[%emt 0:01:57]} 18. Rad1 {[%emt 0:04:06]} Rad8 {[%emt 0:00:39]} 19. h3 {[%emt 0:00:15]} h6 {[%emt 0:07:38]} 20. Kh2 {[%emt 0:08:08]} a5 {[%emt 0:01:01]} 21. Ng1 {[%emt 0:01:43]} Rxd1 {[%emt 0:05:53]} 22. Rxd1 {[%emt 0:00:05]} Rd8 {[%emt 0:00:18]} 23. Rxd8+ {[%emt 0:02:23]} Qxd8 {[%emt 0:00:17]} 24. Nf3 Qb6 {[%emt 0:05:36]} 25. g4 {[%emt 0:05:10]} a4 {[%emt 0:11:20]} 26. bxa4 {[%emt 0:02:21]} Qb1 {[%emt 0:00:31]} 27. Nd2 {[%emt 0:04:32]} Qxa2 {[%emt 0:02:29]} 28. Qb8+ {[%emt 0:00:04]} Kh7 {[%emt 0:00:08]} 29. Qb1+ {[%emt 0:00:04]} Qxb1 {[%emt 0:00:34]} 30. Nxb1 {[%emt 0:00:14]} Nd7 {[%emt 0:02:01]} 31. Nd2 {[%emt 0:00:27]} Nb8 {[%emt 0:00:30]} 32. Kg3 {[%emt 0:01:08]} Kg6 {[%emt 0:03:57]} 33. Kf4 {[%emt 0:03:28]} f6 {[%emt 0:00:17]} 34. e4 {[%emt 0:00:42]} e5+ {[%emt 0:03:45]} 35. Ke3 {[%emt 0:00:08]} Kf7 36. Kd3 {[%emt 0:01:45]} Ke6 {[%emt 0:01:48]} 37. Nf3 {[%emt 0:03:43]} Nc6 {[%emt 0:04:25]} 38. Nh4 {[%emt 0:00:28]} Na5 {[%emt 0:00:48]} 39. Nf5 {[%emt 0:00:27]} Kf7 {[%emt 0:00:09]} 40. h4 {[%emt 0:00:00]} Kf8 {[%emt 0:00:00]} 41. Kc3 {[%emt 0:07:51]} Kf7 {[%emt 0:00:55]} 42. Ng3 {[%emt 0:04:36]} Ke6 $11 {[%emt 0:01:55]} 43. h5 Ke7 {[%emt 0:01:31]} 44. Nf1 {[%emt 0:03:21]} Kd6 {[%emt 0:00:46]} 45. Ne3 {[%emt 0:00:09]} Ke6 {[%emt 0:00:26]} 46. Nc2 Kd6 47. Na1 Kc6 48. Nb3 Kd6 49. Na1 Nb7 1/2-1/2